Cogmind - Beta 16.1 @@@ ROGUE MODE // 2026.03.03 @ 12:45:01 Player: shockman27 Result: Destroyed self with Light Ion Engine chain reaction Performance ------------- Evolutions (0) 0 Regions Visited (1) 200 Robots Destroyed (26) 130 Value Destroyed (515) 515 Prototype IDs (0) 0 Alien Tech Used (0) 0 Bonus (0) 0 TOTAL SCORE: 845 Bonus ------- None Cogmind --------- Core Integrity 0/250 Matter 282/300 Energy 58/100 System Corruption 0% Temperature Cool (12) Movement Treading (320) Ox2 Location -10/Materials Parts ------- > --- POWER (1) -------- (None) > --- PROPULSION (2) --- Light Treads > --- UTILITY (2) ------ High-capacity Storage Unit Seismic Detector > --- WEAPON (2) ------- EM Pulse Gun Assault Rifle > --- INVENTORY (20) --- Light Ion Engine Light Treads Compact Wheel Compact Wheel High-capacity Matter Pod (41) Targeting Computer Beam Cannon Light Assault Rifle Datajack Mining Laser Peak State ------------ > --- POWER ------------ Ion Engine > --- PROPULSION ------- Light Treads Light Treads > --- UTILITY ---------- High-capacity Storage Unit Seismic Detector > --- WEAPON ----------- Medium Laser Small Laser > --- INVENTORY -------- Light Ion Engine Light Treads Compact Wheel Compact Wheel Targeting Computer EM Pulse Gun Assault Rifle Light Assault Rifle Datajack Mining Laser [Rating: 8] Favorites ----------- Power Ion Engine Engine Ion Engine Propulsion Light Treads Treads Light Treads Utility Seismic Detector Device Seismic Detector Storage High-capacity Storage Unit Weapon Medium Laser Energy Gun Medium Laser Ballistic Gun Assault Rifle Build | -11 -10 ------- Run | Yrd Mat Slots Evolved . | . . Power . | . . Propulsion . | . . Utility . | . . Weapon . | . . Parts Attached 13 | 8 5 Power 2 | 2 . Engine 2 | 2 . Core . | . . Reactor . | . . Propulsion 3 | 2 1 Treads 3 | 2 1 Leg . | . . Wheel . | . . Hover . | . . Flight . | . . Utility 4 | 2 2 Device 2 | 1 1 Storage 2 | 1 1 Processor . | . . Hackware . | . . Protection . | . . Artifact . | . . Weapon 4 | 2 2 Energy Gun 3 | 2 1 Energy Cannon . | . . Ballistic Gun 1 | . 1 Ballistic Cannon . | . . Launcher . | . . Special Weapon . | . . Impact Weapon . | . . Slashing Weapon . | . . Piercing Weapon . | . . Special Melee Weapon . | . . Unidentified Prototypes . | . . Parts Lost 5 | . 5 Power 1 | . 1 Propulsion 1 | . 1 Utility 1 | . 1 Weapon 2 | . 2 Highest Loss Streak 4 | . 4 To Critical Strikes . | . . Average Backups 7 | 4 8 Power . | . 1 Propulsion 2 | 1 2 Utility . | . 1 Weapon 2 | 1 2 Tool/Special . | . . Unused Backups 8 | . 8 Power . | . . Propulsion 2 | . 2 Utility 2 | . 2 Weapon 3 | . 3 Tool/Special 1 | . 1 Average Slot Usage (%) 90 | . 90 Engine 9 | . 9 Treads 24 | . 24 Device 14 | . 14 Storage 14 | . 14 Energy Gun 23 | . 23 Ballistic Gun 3 | . 3 Peak Build Rating 8 | 7 8 Average Rating 6 | 5 6 On Entrance 3 | . 7 Avg Prop Armor Cover (%) . | . . Naked Turns . | . . Heaviest Build 49 | 14 49 Greatest Support 40 | 40 40 Greatest Overweight (x) 2 | 2 2 Average Overweight (x) . | . 1 Largest Inventory Capacity 20 | 8 20 Average Capacity 16 | 7 19 Most Carried 10 | 6 10 Average Carried 7 | 4 8 Final Capacity 20 | 8 20 Final Carried 10 | 6 10 Class Distribution -------------------- 100% | Mutant Dominant Class ---------------- Mutant | -10/Materials Resources | -11 -10 ----------- Run | Yrd Mat Matter Collected 382 | 272 110 Remotely . | . . Salvage Created 745 | 47 698 Parts 59 | 7 52 Haulers Intercepted 2 | . 2 Recyclers Shooed 2 | . 2 Parts Field Recycled . | . . Retrieved Matter . | . . Parts Self-Destructed . | . . Prevented . | . . Parts Restored . | . . Kills | -11 -10 ------- Run | Yrd Mat Combat Hostiles Destroyed 19 | . 19 Guns 16 | . 16 AOE 3 | . 3 Classes Destroyed 7 | 1 6 Worker 1 | . 1 Tunneler 2 | 2 . Hauler 2 | . 2 Recycler 1 | . 1 Operator 1 | . 1 Swarmer 8 | . 8 Grunt 11 | . 11 Best Kill Streak 8 | 1 8 Combat Bots Only 6 | . 6 Max Kills in Single Turn 5 | 1 5 Gunslinging . | . . Exploded 3 | . 3 Melee . | . . Uniques/NPCs Destroyed . | . . Combat | -11 -10 -------- Run | Yrd Mat Hostile Shots Fired 118 | . 118 Missed 32 | . 32 Hits 86 | . 86 Projectile 86 | . 86 Damage Taken 921 | . 921 Core 273 | . 273 Absorbed by Shields . | . . Core Remaining (%) 100 | 100 . Volleys Fired 76 | 9 67 Largest 2 | 2 2 Hottest 90 | 90 90 Shots Fired 113 | 18 95 Gun 113 | 18 95 Cannon . | . . Launcher . | . . Special . | . . Kinetic 12 | . 12 Thermal 89 | 18 71 Explosive . | . . Electromagnetic 12 | . 12 Robot Hit Streak 13 | 3 13 Robot Miss Streak 5 | 2 5 Penetration Max . | . . Secondary Targets 3 | . 3 Max Gunslinging Chain 1 | . 1 Shots Hit Robots 71 | 10 61 Core Hits 35 | 2 33 Critical Kills . | . . Critical Parts Destroyed . | . . Critical Strikes 2 | . 2 Burn 2 | . 2 Melee Attacks . | . . Impact . | . . Slashing . | . . Piercing . | . . Sneak Attacks . | . . Combat Hostiles . | . . Follow-up Attacks . | . . Damage Inflicted 1232 | 120 1112 Guns 871 | 120 751 Cannons . | . . Explosions 358 | . 358 Melee . | . . Ramming 3 | . 3 Kinetic 104 | . 104 Thermal 965 | 120 845 Explosive . | . . Electromagnetic 160 | . 160 Impact . | . . Slashing . | . . Piercing . | . . Highest Corruption . | . . Average Corruption . | . . Corruption Purged . | . . Corruption Blocked . | . . Overload Shots . | . . Overflow Damage 166 | . 166 Projectiles . | . . Explosions 166 | . 166 Melee . | . . Knockbacks . | . . Impact . | . . Kinetic . | . . Secondary . | . . Self-Inflicted Damage 68 | . 68 Shots 3 | . 3 Rammed 1 | . 1 Targets Rammed 1 | . 1 Kicked . | . . Crushed . | . . Highest Temperature 276 | 120 276 Average Temperature 105 | 46 121 Received Heat Transfer 342 | . 342 Effects 2 | . 2 Energy Bleed 1 | . 1 Interference 1 | . 1 Siege Activations . | . . Martial Activations . | . . Shielding Activations . | . . Robots Disrupted . | . . Combat Hostiles . | . . Robots Corrupted . | . . Combat Hostiles . | . . Parts Fried . | . . Impact Corruptions . | . . Robots Melted . | . . Combat Hostiles . | . . Parts Melted 2 | . 2 Heat Transferred 2038 | 322 1716 Parts Sabotaged . | . . Parts Stolen . | . . Parts Stripped . | . . Power Chain Reactions 1 | . 1 Alert | -11 -10 ------- Run | Yrd Mat Maximum Alert Level 1 | . 1 Low Security (%) 38 | 100 22 Level 1 61 | . 77 Level 2 . | . . Level 3 . | . . Level 4 . | . . Level 5 . | . . High Security . | . . Max Security . | . . Peak Influence 281 | 5 281 Initial . | . . Average 155 | . 195 Influence Increases 548 | 10 538 Destroy 0b10 Robot/C 380 | . 380 Destroy 0b10 Robot/NC 35 | 10 25 Destroy Leader 64 | . 64 Disable Machine 30 | . 30 Destroy Structure 39 | . 39 Influence Decreases 278 | 10 268 Time Decay 228 | 10 218 Lost Part 50 | . 50 Squads Dispatched 3 | . 3 Investigation 1 | . 1 Extermination . | . . Reinforcement 2 | . 2 Assault . | . . Garrison . | . . Intercept . | . . Searches Triggered . | . . Construction Impeded . | . . Haulers Reinforced . | . . Active Scanning Responses . | . . Cargo Convoy Interrupts . | . . Stealth | -11 -10 --------- Run | Yrd Mat Distress Signals 1 | . 1 Communications Jammed . | . . Distress Signals . | . . Times Spotted 23 | . 23 Peak Tracking Total 5 | . 5 Tactical Retreats . | . . Traps | -11 -10 ------- Run | Yrd Mat Traps Triggered 1 | . 1 Indirectly . | . . Trap Hack Attempts . | . . Triggered . | . . Disarmed . | . . Reprogrammed . | . . Reused . | . . Traps Extracted . | . . Installed . | . . Triggered . | . . Machines | -11 -10 ---------- Run | Yrd Mat Machines Disabled 2 | . 2 Max in Single Turn 2 | . 2 Machines Repaired . | . . Machines Dismantled . | . . Machines Sabotaged . | . . Overloaded Fab Kills . | . . Hacking | -11 -10 --------- Run | Yrd Mat Machines Accessed . | . . Terminals . | . . Fabricators . | . . Repair Stations . | . . Recycling Units . | . . Scanalyzers . | . . Garrison Access . | . . Total Hacks . | . . Successful . | . . Failed . | . . Catastrophic . | . . Database Lockouts . | . . Manual . | . . Terminals . | . . Fabricators . | . . Repair Stations . | . . Recycling Units . | . . Scanalyzers . | . . Garrison Access . | . . Terminal Hacks . | . . Fabricator Hacks . | . . Repair Station Hacks . | . . Recycling Unit Hacks . | . . Scanalyzer . | . . Garrison Access Hacks . | . . Unauthorized Hacks . | . . Terminals . | . . Fabricators . | . . Repair Stations . | . . Recycling Units . | . . Scanalyzers . | . . Garrison Access . | . . Data Cores Recovered . | . . Used . | . . Hacking Detections . | . . Full Trace Events . | . . Feedback Events . | . . Feedback Blocked . | . . Robot Schematics Acquired . | . . Robots Built . | . . Authchips . | . . Time . | . . Total Robot Build Rating . | . . Part Schematics Acquired . | . . Parts Built . | . . Authchips . | . . Time . | . . Total Part Build Rating . | . . Part Studies Acquired . | . . Parts Repaired . | . . Time . | . . Parts Recycled . | . . Recycled Matter . | . . Retrieved Matter . | . . Retrieved Components . | . . Parts Scanalyzed . | . . Part Schematics Acquired . | . . Parts Damaged . | . . Bothacking | -11 -10 ------------ Run | Yrd Mat Used RIF Installer . | . . Robots Hacked . | . . Non-combat . | . . Combat . | . . Robot Hacks Applied . | . . Relay Couplers Released . | . . Fabnet Peak Effective % . | . . Robots Rewired . | . . Allies Hacked . | . . Hacks Repelled . | . . Allies | -11 -10 -------- Run | Yrd Mat Total Allies . | . . Largest Group . | . . Highest-Rated Group . | . . Highest-Rated Ally . | . . Total Orders . | . . Ally Attacks . | . . Total Damage . | . . Kills . | . . Allies Corrupted . | . . Allies Melted . | . . Intel | -11 -10 ------- Run | Yrd Mat Active Infowar (turns) 582 | 65 517 Seismic 582 | 65 517 Robot Analysis Total . | . . Derelict Logs Recovered . | . . Drone Launches . | . . Drone Recoveries . | . . Exploration | -11 -10 ------------- Run | Yrd Mat Turns Passed 655 | 136 519 Spaces Moved 194 | 65 129 Core 14 | 14 . Treads 180 | 51 129 Legs . | . . Wheels . | . . Hover . | . . Flight . | . . Fastest Speed 50 | 50 160 Average Speed 213 | 140 249 Slowest Speed 320 | 160 320 Overloaded Moves . | . . Propulsion Burnouts . | . . Robots Hopped . | . . Potential Cave-ins . | . . Cave-ins Triggered . | . . Exploration Rate (%) 16 | 4 28 Regions Visited 1 Branch Regions . Pre-discovered Areas . | . . Known Exits Taken . | . . Unknown Exits Taken 1 | 1 . Scrap Searched . | . . Spaces Dug . | . . Terrain Destroyed 37 | . 37 Melee . | . . Projectile . | . . AOE 37 | . 37 Terrain Rammed . | . . Walls Destroyed . | . . Machines Disabled . | . . Actions | -11 -10 --------- Run | Yrd Mat Total 320 | 89 231 Wait 24 | 2 22 Move 193 | 64 129 Hop . | . . Pick Up 12 | 6 6 Fast Attach 6 | 6 . Attach 4 | 1 3 Detach . | . . Swap 3 | 1 2 Drop 1 | . 1 Fire 76 | 9 67 Melee . | . . Ram . | . . Kick . | . . Crush 1 | . 1 Escape Stasis . | . . Rewire . | . . Trap . | . . Miscellaneous . | . . Route ------- -11/Scrapyard -10/Materials History --------- Turn | Location | Event 18 | -11/Scrapyard | Discovered new exit (range 16) 137 | -11/Scrapyard | Entered Materials 306 | -10/Materials | Build established: Mutant 343 | -10/Materials | Core integrity fell below 50% 493 | -10/Materials | Core integrity fell below 20% 551 | -10/Materials | Lost 4 parts (1p1n2w) 656 | -10/Materials | Destroyed self with Light Ion Engine chain reaction Last Messages --------------- 00582_ Acquired Beam Cannon. 00586_ K-01 Serf collects debris. 00593_ Acquired Hcp. Matter Pod. 00593_ K-01 Serf collects debris. 00600_ Triggered Alarm Trap. 00600_ An alarm sounds. 00600_ ALERT: Alarm triggered, dispatching investigation squad. 00602_ K-01 Serf collects debris. 00623_ G-34 Mercenary destroyed. 00626_ Acquired 47 matter. 00630_ K-01 Serf collects debris. 00630_ R-06 Scavenger collects Aluminum Leg. 00633_ R-06 Scavenger collects Heat Sink. 00637_ K-01 Serf collects debris. 00638_ R-06 Scavenger collects Ion Engine. 00644_ G-34 Mercenary destroyed. 00644_ Switching to secondary target: G-34 Mercenary. 00653_ G-34 Mercenary destroyed. 00656_ Chain reaction triggered in Lgt. Ion Engine. 00656_ O-16 Technician destroyed. Map ----- +----------------------------------------------------+ | | | | | | | | | | | | | | | | | | | | | | | | | | | | | | | | | ?????????????????????????????????????????????????? | | ?????????????????????????????????????????????????? | | ?????????????????????????????????????????????????? | | ??????????????????????????########???????????????? | | ????????????????????####### #?#####?????????? | | ????????????????????# ^ # # #?????????? | | ???????????##+####### !%;= #""" #?????????? | | ?????????? [=; #""" #?????????? | | ?????????? % =*%;[ #""" #?????????? | | ?????????? @# #""" #?????????? | | ???????????# """" ####+###""" #?######### | | ???????????????""" #??# #?# =% ########### | | ???????????????""" #### #####+#### | | ?????????????? "T" % + | | ????????????? """ # | | ????????????#######+#### % # | | ???????????????????????+ %%+ | | ???????????????????????################## | | ??????????????????????????????????????# # % | | ??????????????????????????????????????###! % | | ?????????????????????????????????############+#### | | ?????????????????????????????????# =# % " | | ?????????????????????????????????# """ """ + ^ " | | ?????????????????????????????????# """ """%# | | ?????????????????????????????????# """ """=# | | ?????????????????????????????????# # % | | ?????????????????????????????????# ! # | | ?????????????????????????????????# # " | | ?????????????????????????????????# % +% " | | ?????????????????????????????????########### " | | ???????????????????????????????????????????# | | ???????????????????????????????????????????# ^ | | ???????????????????????????????????????????# % " | | ???????????????????????????????????????????# " | +----------------------------------------------------+ Best States ------------- Heat Dissipation 25 Energy Generation 10 Energy Capacity 250 Matter Stores 300 Matter Capacity 300 Sight Range 16 Terrain Scan Density 10 Evasion (%) 50 Recoil Reduction 2 Item Schematics ----------------- None Robot Schematics ------------------ None Fabricated ------------ Nothing Repaired ---------- Nothing Studied --------- None Alien Tech Used ----------------- None Achievements -------------- None Challenges ------------ None Game ------ Seed WeaponsPropulsionBrace Manual? 0 Play Time 00:06:40 Cumulative 194.6 hours Start 2026.03.02 @ 19:21:54 End 2026.03.03 @ 12:45:01 Sessions 4 Manual Loads 0 Difficulty Rogue Special Mode None Game No. 112 Rogue 108 Adventurer 4 Explorer 0 Win Type - Total 3 Types 2/0/0/1/0/0/0/0/0/0 Lore% 70 Gallery% 59 Achievement% 41 Wizard Run 0 Options --------- Layout 0 ASCII 0 Keyboard 1 Movement Vi Keybinds 0 Fullscreen 1 Font 24/Smallcaps Map View 76x50 Zoom Use 0% Tactical HUD 1 Map Filters NONE Filters NONE Steam 1 RUN: 952180c4-99bf-4c96-a9cf-829415bea18b